[Event "Najdorf Memorial-A 2022"]
[Site "Warsaw"]
[Date "2022.07.10"]
[Round "2.16"]
[White "Niezhentsev, Kyrylo"]
[Black "Raczek, Krzysztof"]
[Result "1/2-1/2"]
[ECO "B23"]
[WhiteElo "1721"]
[BlackElo "2114"]
[Annotator "RC"]
[PlyCount "148"]
[EventDate "2022.07.09"]
[EventType "swiss"]
[EventCountry "POL"]
[SourceTitle "playchess.com"]
[Source "ChessBase"]
[SourceQuality "1"]
[TimeControl "40/5400+30:1800+30"]

1. e4 {[%emt 0:00:06]} c5 {[%emt 0:00:01]} 2. Nc3 {[%emt 0:00:15]} g6 {[%emt 0:00:45]} 3. Nf3 {[%emt 0:00:19]} Bg7 {[%emt 0:00:16]} 4. d4 {[%emt 0:00:12]} cxd4 {[%emt 0:01:31]} 5. Nxd4 {[%emt 0:00:07]} Nc6 {[%emt 0:00:13]} 6. Be3 {[%emt 0:00:12]} Nf6 {[%emt 0:02:33]} 7. Nxc6 {[%emt 0:00:09]} bxc6 {[%emt 0:00:49]} 8. e5 {[%emt 0:00:06]} Nd5 {[%emt 0:00:03]} 9. Nxd5 {[%emt 0:00:15]} cxd5 {[%emt 0:00:02]} 10. Qxd5 {[%emt 0:00:02]} Rb8 {[%emt 0:00:14]} 11. O-O-O {[%emt 0:00:06]} O-O {[%emt 0:00:27]} 12. Bxa7 {[%emt 0:02:36]} Rb7 {[%emt 0:08:02]} 13. Bd4 {[%emt 0:01:28]} Rc7 {[%emt 0:04:42]} 14. Qb3 {[%emt 0:13:34]} Bb7 {[%emt 0:01:36]} 15. f3 {[%emt 0:04:14]} Qa8 {[%emt 0:14:50]} 16. Bb6 {[%emt 0:35:04]} Rc6 {[%emt 0:00:23]} 17. a3 {[%emt 0:00:35]} Rfc8 {[%emt 0:02:27]} 18. Bd3 {[%emt 0:05:15]} Bxe5 {[%emt 0:03:46]} 19. Rhe1 {[%emt 0:00:58]} Bf6 {[%emt 0:00:52]} 20. Be4 {[%emt 0:02:05]} d5 {[%emt 0:01:22]} 21. Bd3 {[%emt 0:01:54]} Ba6 {[%emt 0:00:32]} 22. Bd4 {[%emt 0:07:16]} Bxd4 {[%emt 0:01:11]} 23. Bxa6 {[%emt 0:00:09]} Rb6 {[%emt 0:01:50]} 24. Bb5 {[%emt 0:00:59]} Qa5 {[%emt 0:02:25]} 25. a4 {[%emt 0:03:16]} e6 {[%emt 0:00:48]} 26. h4 {[%emt 0:01:52]} Bf6 {[%emt 0:11:17]} 27. h5 {[%emt 0:01:25]} Rcb8 {[%emt 0:01:21]} 28. c3 {[%emt 0:03:36]} Qa7 {[%emt 0:06:39]} 29. hxg6 {[%emt 0:01:32]} hxg6 {[%emt 0:00:08]} 30. Qb4 {[%emt 0:03:30]} Qc7 {[%emt 0:02:52]} 31. Kb1 {[%emt 0:05:52]} Kg7 {[%emt 0:09:02]} 32. f4 {[%emt 0:02:20]} R8b7 {[%emt 0:07:18]} 33. g4 {[%emt 0:00:52]} g5 {[%emt 0:00:38]} 34. fxg5 {[%emt 0:00:12]} Bxg5 {[%emt 0:00:01]} 35. Qd4+ {[%emt 0:01:16]} Bf6 {[%emt 0:03:26]} 36. Qd3 {[%emt 0:00:02]} Qb8 {[%emt 0:01:13]} 37. Rh1 {[%emt 0:01:13]} Kf8 {[%emt 0:07:28]} 38. Rdf1 {[%emt 0:01:01]} Bg7 {[%emt 0:01:08]} 39. Qe3 {[%emt 0:02:25]} Qd6 {[%emt 0:03:07]} 40. Rh7 {[%emt 0:00:00]} e5 {[%emt 0:00:00]} 41. Rh5 {[%emt 0:13:38]} Qg6+ {[%emt 0:02:26]} 42. Rff5 {[%emt 0:04:01]} Qd6 {[%emt 0:04:32]} 43. Qh3 {[%emt 0:03:09]} Rb8 {[%emt 0:01:46]} 44. Rh8+ {[%emt 0:02:44]} Ke7 {[%emt 0:00:22]} 45. Qh4+ {[%emt 0:00:35]} Bf6 {[%emt 0:00:16]} 46. Rxb8 {[%emt 0:00:53]} Rxb8 {[%emt 0:00:23]} 47. g5 {[%emt 0:01:02]} Bg7 {[%emt 0:01:09]} 48. Qf2 {[%emt 0:01:41]} Rf8 {[%emt 0:01:42]} 49. Qa7+ {[%emt 0:02:35]} Ke6 {[%emt 0:00:16]} 50. Rf1 {[%emt 0:00:43]} Qe7 {[%emt 0:02:17]} 51. Qf2 {[%emt 0:00:57]} f5 {[%emt 0:00:36]} 52. gxf6 {[%emt 0:01:42]} Rxf6 {[%emt 0:02:38]} 53. Qb6+ {[%emt 0:00:16]} Qd6 {[%emt 0:00:17]} 54. Rxf6+ {[%emt 0:00:25]} Bxf6 {[%emt 0:00:07]} 55. Qb7 {[%emt 0:00:32]} Bd8 {[%emt 0:00:36]} 56. Qg7 {[%emt 0:01:16]} e4 {[%emt 0:01:06]} 57. Qg6+ {[%emt 0:01:16]} Ke5 {[%emt 0:00:21]} 58. Qg3+ {[%emt 0:00:54]} Ke6 {[%emt 0:00:06]} 59. Qxd6+ {[%emt 0:00:23]} Kxd6 {[%emt 0:00:01]} 60. Kc2 {[%emt 0:00:14]} Bb6 {[%emt 0:00:38]} 61. Kd1 {[%emt 0:00:28]} d4 {[%emt 0:00:37]} 62. cxd4 {[%emt 0:00:34]} Bxd4 {[%emt 0:00:06]} 63. b3 {[%emt 0:00:11]} Bc3 {[%emt 0:00:11]} 64. Ke2 {[%emt 0:00:09]} Kc5 {[%emt 0:00:18]} 65. Ke3 {[%emt 0:00:15]} Ba5 {[%emt 0:00:06]} 66. Kxe4 {[%emt 0:00:06]} Kb4 {[%emt 0:00:04]} 67. Bc4 {[%emt 0:00:12]} Kc3 {[%emt 0:00:07]} 68. Kd5 {[%emt 0:00:11]} Kb4 {[%emt 0:00:07]} 69. Kc6 {[%emt 0:00:05]} Bd8 {[%emt 0:00:05]} 70. Kb7 {[%emt 0:00:24]} Ka5 {[%emt 0:00:08]} 71. b4+ {[%emt 0:00:33]} Kxb4 {[%emt 0:00:19]} 72. a5 {[%emt 0:00:05]} Kxa5 {[%emt 0:00:13]} 73. Bb5 {[%emt 0:00:06]} Bc7 {[%emt 0:00:05]} 74. Kxc7 {[%emt 0:00:05]} Kxb5 {[%emt 0:00:03]} 1/2-1/2

[Event "Najdorf Memorial-A 2022"]
[Site "Warsaw"]
[Date "2022.07.10"]
[Round "2.17"]
[White "Szewczyk, Mariusz"]
[Black "Siekanska, Zuzanna"]
[Result "0-1"]
[ECO "C50"]
[WhiteElo "2103"]
[BlackElo "1712"]
[Annotator "RC"]
[PlyCount "118"]
[EventDate "2022.07.09"]
[EventType "swiss"]
[EventCountry "POL"]
[SourceTitle "playchess.com"]
[Source "ChessBase"]
[SourceQuality "1"]
[TimeControl "40/5400+30:1800+30"]

1. e4 {[%emt 0:00:03]} e5 {[%emt 0:00:13]} 2. Nf3 {[%emt 0:00:06]} Nc6 {[%emt 0:00:06]} 3. Bc4 {[%emt 0:00:06]} Nf6 {[%emt 0:00:09]} 4. d3 {[%emt 0:00:05]} Bc5 {[%emt 0:00:11]} 5. O-O {[%emt 0:00:10]} O-O {[%emt 0:00:08]} 6. h3 d5 {[%emt 0:01:08]} 7. exd5 {[%emt 0:00:09]} Nxd5 {[%emt 0:00:09]} 8. Re1 {[%emt 0:00:05]} Be6 {[%emt 0:03:25]} 9. c3 {[%emt 0:02:12]} h6 {[%emt 0:04:57]} 10. Nbd2 {[%emt 0:08:10]} Bd6 {[%emt 0:10:54]} 11. Bb3 {[%emt 0:02:03]} Nf4 {[%emt 0:06:05]} 12. Bxe6 {[%emt 0:03:02]} Nxe6 {[%emt 0:02:07]} 13. Nc4 {[%emt 0:00:06]} Qf6 {[%emt 0:04:54]} 14. Qe2 {[%emt 0:13:43]} Rad8 {[%emt 0:01:06]} 15. Be3 {[%emt 0:04:40]} Nf4 {[%emt 0:01:38]} 16. Bxf4 {[%emt 0:00:17]} Qxf4 {[%emt 0:01:21]} 17. Rad1 {[%emt 0:03:54]} Rfe8 {[%emt 0:02:19]} 18. Qe4 {[%emt 0:01:17]} Qxe4 {[%emt 0:03:11]} 19. dxe4 {[%emt 0:00:16]} f6 {[%emt 0:06:58]} 20. Nxd6 {[%emt 0:00:45]} cxd6 {[%emt 0:02:30]} 21. Re2 {[%emt 0:04:04]} Rd7 {[%emt 0:03:15]} 22. Red2 {[%emt 0:11:27]} Red8 {[%emt 0:00:10]} 23. Nh4 {[%emt 0:01:13]} Ne7 {[%emt 0:01:06]} 24. c4 {[%emt 0:00:14]} Kf7 {[%emt 0:01:30]} 25. g3 {[%emt 0:01:33]} g5 {[%emt 0:04:19]} 26. Ng2 {[%emt 0:00:52]} f5 {[%emt 0:01:31]} 27. f3 {[%emt 0:07:38]} Ke6 {[%emt 0:03:09]} 28. Kf2 {[%emt 0:07:15]} fxe4 {[%emt 0:02:22]} 29. fxe4 {[%emt 0:00:07]} Rf8+ {[%emt 0:00:11]} 30. Kg1 {[%emt 0:03:45]} Nc6 {[%emt 0:00:35]} 31. Rf1 {[%emt 0:00:25]} Rxf1+ {[%emt 0:00:36]} 32. Kxf1 {[%emt 0:00:04]} Rf7+ {[%emt 0:00:06]} 33. Rf2 {[%emt 0:01:02]} Rxf2+ {[%emt 0:00:57]} 34. Kxf2 {[%emt 0:00:03]} Nb4 {[%emt 0:00:07]} 35. Kf3 {[%emt 0:04:47]} Nd3 {[%emt 0:07:54]} 36. b3 {[%emt 0:04:28]} Nc1 {[%emt 0:06:55]} 37. Kg4 {[%emt 0:01:42]} Nxa2 {[%emt 0:00:17]} 38. Kh5 {[%emt 0:00:51]} a5 {[%emt 0:01:15]} 39. Kxh6 {[%emt 0:00:48]} Nc1 {[%emt 0:01:29]} 40. Kxg5 {[%emt 0:00:00]} Nxb3 {[%emt 0:00:00]} 41. Kg6 {[%emt 0:10:03]} a4 {[%emt 0:11:16]} 42. Ne1 {[%emt 0:18:16]} Nd4 {[%emt 0:08:27]} 43. Nd3 {[%emt 0:00:06]} Ne2 {[%emt 0:11:36]} 44. c5 {[%emt 0:08:53]} a3 {[%emt 0:04:39]} 45. cxd6 {[%emt 0:00:35]} a2 {[%emt 0:03:28]} 46. Nc5+ {[%emt 0:00:16]} Kxd6 {[%emt 0:00:07]} 47. Nb3 {[%emt 0:00:07]} Nxg3 {[%emt 0:00:26]} 48. h4 {[%emt 0:01:40]} Nxe4 {[%emt 0:01:39]} 49. Kf5 {[%emt 0:00:59]} Kd5 {[%emt 0:01:22]} 50. Na1 {[%emt 0:01:13]} Nd6+ {[%emt 0:01:55]} 51. Kg6 {[%emt 0:01:25]} Ke6 {[%emt 0:00:38]} 52. Kg5 {[%emt 0:00:25]} Nf5 {[%emt 0:00:54]} 53. h5 {[%emt 0:00:14]} e4 {[%emt 0:01:42]} 54. Kf4 {[%emt 0:00:11]} e3 {[%emt 0:00:14]} 55. h6 {[%emt 0:01:35]} e2 {[%emt 0:00:16]} 56. h7 {[%emt 0:00:04]} e1=Q {[%emt 0:00:12]} 57. h8=Q {[%emt 0:00:09]} Qe3+ {[%emt 0:00:09]} 58. Kg4 {[%emt 0:00:15]} Qg3+ {[%emt 0:00:12]} 59. Kh5 {[%emt 0:00:07]} Qh4+ {[%emt 0:00:09]} 0-1

[Event "Najdorf Memorial-A 2022"]
[Site "Warsaw"]
[Date "2022.07.10"]
[Round "2.17"]
[White "Liberadzki, Slawomir"]
[Black "Zelak, Wladyslaw"]
[Result "1-0"]
[ECO "A22"]
[WhiteElo "2035"]
[BlackElo "1866"]
[Annotator "NA RC"]
[PlyCount "87"]
[EventDate "2022.07.09"]
[EventType "swiss"]
[EventCountry "POL"]
[SourceTitle "playchess.com"]
[Source "ChessBase"]
[SourceQuality "1"]
[TimeControl "40/5400+30:1800+30"]

1. c4 {[%emt 0:02:42]} e5 {[%emt 0:00:50]} 2. Nc3 {[%emt 0:00:07]} Nf6 {[%emt 0:00:05]} 3. g3 {[%emt 0:00:04]} d5 {[%emt 0:00:04]} 4. cxd5 {[%emt 0:00:04]} Nxd5 {[%emt 0:00:06]} 5. Bg2 {[%emt 0:00:05]} Nb6 {[%emt 0:00:05]} 6. Nf3 {[%emt 0:00:10]} Nc6 {[%emt 0:00:06]} 7. O-O {[%emt 0:00:12]} Be7 {[%emt 0:00:02]} 8. a3 {[%emt 0:00:13]} g5 {[%emt 0:01:06]} 9. d3 {[%emt 0:01:18]} g4 {[%emt 0:00:14]} 10. Nd2 {[%emt 0:00:19]} h5 {[%emt 0:01:12]} 11. Nc4 {[%emt 0:06:13]} h4 {[%emt 0:05:05]} 12. Be3 {[%emt 0:13:38]} Nxc4 {[%emt 0:08:45]} 13. dxc4 {[%emt 0:01:23]} Nd4 {[%emt 0:00:30]} 14. Nd5 {[%emt 0:01:53]} Nf5 {[%emt 0:02:05]} 15. Nxe7 {[%emt 0:03:48]} Qxe7 {[%emt 0:01:18]} 16. Qb3 {[%emt 0:08:53]} c6 {[%emt 0:09:27]} 17. Rfd1 {[%emt 0:12:19]} f6 {[%emt 0:06:33]} 18. Rd2 {[%emt 0:09:04]} Be6 {[%emt 0:12:22]} 19. Rad1 {[%emt 0:04:42]} Kf7 {[%emt 0:15:41]} 20. Be4 {[%emt 0:13:00]} Rh5 {[%emt 0:03:37]} 21. Bc5 {[%emt 0:01:42]} Qc7 {[%emt 0:16:57]} 22. Bd6 {[%emt 0:00:57]} Qb6 {[%emt 0:02:02]} 23. Qxb6 {[%emt 0:04:07]} axb6 {[%emt 0:00:01]} 24. Bc7 {[%emt 0:01:32]} hxg3 {[%emt 0:00:46]} 25. hxg3 {[%emt 0:00:37]} Bxc4 {[%emt 0:02:54]} 26. Bxb6 {[%emt 0:05:43]} Bd5 {[%emt 0:01:39]} 27. Rxd5 {[%emt 0:00:42]} cxd5 {[%emt 0:00:13]} 28. Rxd5 {[%emt 0:03:09]} Rc8 {[%emt 0:02:41]} 29. Rc5 {[%emt 0:01:16]} Rxc5 {[%emt 0:01:04]} 30. Bxc5 {[%emt 0:00:01]} Nd4 {[%emt 0:02:14]} 31. Bxb7 {[%emt 0:00:45]} Nxe2+ {[%emt 0:03:32]} 32. Kf1 {[%emt 0:00:39]} Nd4 {[%emt 0:00:13]} 33. a4 {[%emt 0:00:44]} Nf3 {[%emt 0:02:26]} 34. Ke2 {[%emt 0:01:34]} Ke6 {[%emt 0:00:43]} 35. a5 {[%emt 0:00:35]} Nd4+ {[%emt 0:00:21]} 36. Kd3 {[%emt 0:01:57]} Kd7 {[%emt 0:00:35]} 37. a6 {[%emt 0:00:52]} Kc7 {[%emt 0:00:22]} 38. Bd5 {[%emt 0:00:32]} Nc6 {[%emt 0:00:38]} 39. b4 {[%emt 0:01:01]} e4+ {[%emt 0:00:42]} 40. Bxe4 {[%emt 0:00:00]} Re5 {[%emt 0:00:00]} 41. a7 {[%emt 0:03:20]} Re8 {[%emt 0:04:07]} 42. b5 {[%emt 0:02:13]} Ne5+ {[%emt 0:04:11]} 43. Kc3 {[%emt 0:01:25]} Nd7 {[%emt 0:00:29]} 44. b6+ {[%emt 0:00:19]} 1-0

[Event "Najdorf Memorial-A 2022"]
[Site "Warsaw"]
[Date "2022.07.10"]
[Round "2.18"]
[White "Murchadha, Oissine"]
[Black "Hemmerling, Jaroslaw"]
[Result "0-1"]
[ECO "C11"]
[WhiteElo "1984"]
[BlackElo "1854"]
[Annotator "RC"]
[PlyCount "153"]
[EventDate "2022.07.09"]
[EventType "swiss"]
[EventCountry "POL"]
[SourceTitle "playchess.com"]
[Source "ChessBase"]
[SourceQuality "1"]
[TimeControl "40/5400+30:1800+30"]

1. e4 {[%emt 0:01:18]} e6 {[%emt 0:00:01]} 2. d4 {[%emt 0:00:30]} d5 {[%emt 0:00:03]} 3. Nc3 {[%emt 0:00:11]} Nf6 {[%emt 0:00:02]} 4. e5 {[%emt 0:00:16]} Nfd7 {[%emt 0:00:02]} 5. Nce2 {[%emt 0:00:37]} c5 {[%emt 0:00:22]} 6. c3 {[%emt 0:00:06]} Nc6 {[%emt 0:00:26]} 7. Nf3 {[%emt 0:00:08]} cxd4 {[%emt 0:03:43]} 8. cxd4 {[%emt 0:02:12]} Bb4+ {[%emt 0:00:03]} 9. Bd2 {[%emt 0:00:49]} Qb6 {[%emt 0:01:33]} 10. g3 {[%emt 0:18:37]} O-O {[%emt 0:10:11]} 11. Bg2 {[%emt 0:03:00]} Bxd2+ {[%emt 0:00:13]} 12. Qxd2 {[%emt 0:01:51]} Qb4 {[%emt 0:05:31]} 13. O-O {[%emt 0:02:23]} Qxd2 {[%emt 0:08:52]} 14. Nxd2 {[%emt 0:00:21]} b6 {[%emt 0:00:02]} 15. Rfc1 {[%emt 0:10:50]} Bb7 {[%emt 0:03:51]} 16. f4 {[%emt 0:04:14]} Rfc8 {[%emt 0:02:26]} 17. Nf3 {[%emt 0:21:37]} Nb4 {[%emt 0:06:57]} 18. Ne1 {[%emt 0:20:22]} Ba6 {[%emt 0:07:41]} 19. Nc3 {[%emt 0:00:30]} Nc6 {[%emt 0:07:57]} 20. Nf3 {[%emt 0:02:09]} Nb4 {[%emt 0:02:53]} 21. Ne1 {[%emt 0:00:07]} Nc6 {[%emt 0:01:27]} 22. Rd1 {[%emt 0:05:44]} Na5 {[%emt 0:00:46]} 23. Rac1 {[%emt 0:00:22]} Nc4 {[%emt 0:00:11]} 24. Bf1 {[%emt 0:03:10]} Nxb2 {[%emt 0:09:45]} 25. Bxa6 {[%emt 0:00:11]} Nxd1 {[%emt 0:00:10]} 26. Bxc8 {[%emt 0:01:03]} Rxc8 {[%emt 0:00:02]} 27. Ne2 {[%emt 0:00:46]} Rxc1 {[%emt 0:02:50]} 28. Nxc1 {[%emt 0:00:06]} Nc3 {[%emt 0:00:35]} 29. Kf2 {[%emt 0:00:34]} Nb8 {[%emt 0:01:15]} 30. Ke3 {[%emt 0:00:08]} Nc6 {[%emt 0:00:49]} 31. Kd3 {[%emt 0:00:45]} Nb5 {[%emt 0:01:42]} 32. Nc2 {[%emt 0:00:22]} Kf8 {[%emt 0:07:40]} 33. a4 {[%emt 0:00:54]} Nc7 {[%emt 0:00:04]} 34. Kc3 {[%emt 0:00:31]} Ke7 {[%emt 0:06:15]} 35. Ne2 {[%emt 0:00:19]} Kd7 {[%emt 0:02:06]} 36. Ne3 {[%emt 0:00:30]} b5 {[%emt 0:02:27]} 37. axb5 {[%emt 0:00:43]} Nxb5+ {[%emt 0:00:02]} 38. Kd3 {[%emt 0:00:37]} a5 {[%emt 0:04:09]} 39. Nc2 {[%emt 0:00:19]} Kc7 {[%emt 0:00:47]} 40. Nc3 {[%emt 0:00:00]} Nxc3 {[%emt 0:00:00]} 41. Kxc3 {[%emt 0:01:11]} Kb6 {[%emt 0:07:41]} 42. Kb3 {[%emt 0:01:11]} h5 {[%emt 0:11:45]} 43. Ka4 {[%emt 0:01:30]} Ka6 {[%emt 0:03:01]} 44. Kb3 {[%emt 0:00:20]} Kb5 {[%emt 0:09:52]} 45. Na3+ {[%emt 0:00:20]} Ka6 {[%emt 0:01:13]} 46. Nc2 {[%emt 0:00:30]} Na7 {[%emt 0:00:25]} 47. Ka4 {[%emt 0:01:18]} Nb5 {[%emt 0:00:01]} 48. Kb3 {[%emt 0:00:16]} Kb6 {[%emt 0:00:02]} 49. h3 Ka6 {[%emt 0:00:11]} 50. g4 {[%emt 0:08:24]} hxg4 51. hxg4 {[%emt 0:00:21]} g6 {[%emt 0:00:58]} 52. Kb2 {[%emt 0:18:06]} a4 {[%emt 0:01:25]} 53. f5 {[%emt 0:00:45]} gxf5 {[%emt 0:01:31]} 54. gxf5 {[%emt 0:00:18]} exf5 {[%emt 0:01:52]} 55. Nb4+ {[%emt 0:00:16]} Ka5 {[%emt 0:00:01]} 56. Nc6+ {[%emt 0:03:55]} Kb6 {[%emt 0:00:02]} 57. Ne7 {[%emt 0:00:27]} Nxd4 {[%emt 0:00:33]} 58. Nxd5+ {[%emt 0:00:35]} Kc5 {[%emt 0:00:48]} 59. Nf4 {[%emt 0:00:25]} Kb5 {[%emt 0:01:12]} 60. Ka3 {[%emt 0:00:27]} Ka5 {[%emt 0:00:53]} 61. Ng2 {[%emt 0:00:41]} Nc6 {[%emt 0:00:48]} 62. Ne3 {[%emt 0:00:21]} Nxe5 {[%emt 0:00:39]} 63. Nxf5 {[%emt 0:00:11]} Nc4+ {[%emt 0:00:04]} 64. Ka2 {[%emt 0:00:08]} Kb4 {[%emt 0:00:08]} 65. Ne7 {[%emt 0:00:53]} Kc3 {[%emt 0:00:11]} 66. Nd5+ {[%emt 0:00:53]} Kd4 {[%emt 0:00:03]} 67. Ne7 {[%emt 0:00:33]} Ke4 {[%emt 0:00:47]} 68. Kb1 {[%emt 0:00:26]} f5 {[%emt 0:00:02]} 69. Kc2 {[%emt 0:00:32]} f4 {[%emt 0:00:29]} 70. Nc6 {[%emt 0:00:31]} f3 {[%emt 0:00:13]} 71. Kd1 {[%emt 0:00:30]} a3 {[%emt 0:00:39]} 72. Nb4 {[%emt 0:00:13]} Nb2+ {[%emt 0:00:29]} 73. Kd2 {[%emt 0:00:45]} Nc4+ {[%emt 0:01:25]} 74. Kd1 {[%emt 0:00:32]} Ke3 {[%emt 0:00:37]} 75. Nc2+ {[%emt 0:00:10]} Kf2 {[%emt 0:00:02]} 76. Kc1 {[%emt 0:00:50]} Kg1 {[%emt 0:00:10]} 77. Nd4 0-1

[Event "Najdorf Memorial-A 2022"]
[Site "Warsaw"]
[Date "2022.07.10"]
[Round "2.19"]
[White "Harazinska, Magdalena"]
[Black "Hertlein, Irena"]
[Result "1/2-1/2"]
[ECO "E32"]
[WhiteElo "1976"]
[BlackElo "1850"]
[Annotator "NA RC"]
[PlyCount "62"]
[EventDate "2022.07.09"]
[EventType "swiss"]
[EventCountry "POL"]
[SourceTitle "playchess.com"]
[Source "ChessBase"]
[SourceQuality "1"]
[TimeControl "40/5400+30:1800+30"]

1. d4 {[%emt 0:00:03]} Nf6 {[%emt 0:00:05]} 2. c4 {[%emt 0:00:07]} e6 {[%emt 0:00:05]} 3. Nc3 {[%emt 0:00:04]} Bb4 {[%emt 0:00:06]} 4. Qc2 {[%emt 0:01:46]} O-O {[%emt 0:00:10]} 5. e4 {[%emt 0:00:55]} d5 {[%emt 0:00:43]} 6. cxd5 {[%emt 0:00:26]} exd5 {[%emt 0:00:22]} 7. e5 {[%emt 0:00:16]} Ne4 {[%emt 0:00:42]} 8. Bd3 {[%emt 0:04:14]} c5 {[%emt 0:07:04]} 9. Bxe4 {[%emt 0:10:32]} dxe4 {[%emt 0:04:50]} 10. dxc5 {[%emt 0:01:50]} Nc6 {[%emt 0:19:33]} 11. Nge2 {[%emt 0:06:38]} Qd3 {[%emt 0:07:09]} 12. Qxd3 {[%emt 0:10:54]} exd3 {[%emt 0:01:51]} 13. Nf4 {[%emt 0:00:02]} Nxe5 {[%emt 0:16:42]} 14. Be3 {[%emt 0:04:13]} Bxc3+ {[%emt 0:06:44]} 15. bxc3 {[%emt 0:00:02]} Bf5 {[%emt 0:01:01]} 16. O-O {[%emt 0:08:26]} Rfd8 {[%emt 0:04:14]} 17. Bd4 {[%emt 0:05:44]} Nc4 {[%emt 0:04:08]} 18. Rab1 {[%emt 0:18:08]} a5 {[%emt 0:22:18]} 19. g4 {[%emt 0:16:47]} Bxg4 {[%emt 0:00:53]} 20. Nxd3 {[%emt 0:00:04]} Nd2 {[%emt 0:01:15]} 21. Ne5 {[%emt 0:04:18]} Nxb1 {[%emt 0:00:28]} 22. Rxb1 {[%emt 0:00:29]} Bc8 {[%emt 0:00:29]} 23. Nc4 {[%emt 0:01:02]} Ra6 {[%emt 0:00:35]} 24. Nd6 {[%emt 0:00:21]} Raxd6 {[%emt 0:00:30]} 25. cxd6 {[%emt 0:00:16]} Rxd6 {[%emt 0:00:04]} 26. Rb5 {[%emt 0:02:02]} Bh3 {[%emt 0:00:48]} 27. Rxa5 {[%emt 0:02:17]} Rg6+ {[%emt 0:00:14]} 28. Kh1 {[%emt 0:00:02]} Bg2+ {[%emt 0:00:38]} 29. Kg1 {[%emt 0:00:01]} b6 {[%emt 0:00:37]} 30. Re5 {[%emt 0:01:50]} Bh3+ {[%emt 0:00:37]} 31. Kh1 {[%emt 0:00:05]} Bg2+ {[%emt 0:00:17]} 1/2-1/2

[Event "Najdorf Memorial-A 2022"]
[Site "Warsaw"]
[Date "2022.07.11"]
[Round "3.1"]
[White "Noe, Christopher"]
[Black "Chomczyk, Marek"]
[Result "1/2-1/2"]
[ECO "E71"]
[WhiteElo "2505"]
[BlackElo "2290"]
[Annotator "ChessBase"]
[PlyCount "80"]
[EventDate "2022.07.09"]
[EventType "swiss"]
[EventCountry "POL"]
[SourceTitle "playchess.com"]
[Source "ChessBase"]
[SourceQuality "1"]
[TimeControl "40/5400+30:1800+30"]

1. d4 {[%emt 0:00:04]} Nf6 {[%emt 0:00:05]} 2. c4 {[%emt 0:00:06]} g6 {[%emt 0:00:08]} 3. Nc3 {[%emt 0:00:10]} Bg7 {[%emt 0:00:08]} 4. e4 {[%emt 0:00:05]} d6 {[%emt 0:00:05]} 5. h3 {[%emt 0:00:16]} O-O {[%emt 0:00:28]} 6. Be3 {[%emt 0:00:11]} e5 {[%emt 0:01:35]} 7. d5 {[%emt 0:00:06]} Na6 {[%emt 0:00:05]} 8. g4 {[%emt 0:02:32]} Nc5 {[%emt 0:00:13]} 9. f3 {[%emt 0:00:21]} a5 {[%emt 0:00:04]} 10. Qd2 {[%emt 0:13:00]} c6 {[%emt 0:11:42]} 11. Nge2 {[%emt 0:06:18]} a4 12. Ng3 {[%emt 0:03:09]} h5 {[%emt 0:35:15]} 13. Bg5 {[%emt 0:23:30]} h4 {[%emt 0:01:59]} 14. Nge2 {[%emt 0:04:00]} Qa5 {[%emt 0:05:45]} 15. Bxh4 {[%emt 0:09:09]} b5 {[%emt 0:03:04]} 16. Ng3 bxc4 {[%emt 0:03:47]} 17. dxc6 {[%emt 0:03:59]} Rb8 {[%emt 0:02:44]} 18. Bxc4 {[%emt 0:04:57]} Be6 {[%emt 0:12:37]} 19. Be2 {[%emt 0:08:24]} d5 {[%emt 0:04:00]} 20. g5 {[%emt 0:06:56]} Rfd8 {[%emt 0:08:14]} 21. gxf6 {[%emt 0:01:13]} dxe4 {[%emt 0:00:05]} 22. Qc1 {[%emt 0:05:16]} Bf8 {[%emt 0:02:17]} 23. O-O {[%emt 0:02:53]} exf3 {[%emt 0:04:10]} 24. Rxf3 {[%emt 0:00:07]} Rdc8 {[%emt 0:00:19]} 25. Bg5 {[%emt 0:00:48]} Rxc6 {[%emt 0:01:03]} 26. Bh6 {[%emt 0:00:38]} Qb6 {[%emt 0:02:05]} 27. Kh2 {[%emt 0:01:28]} e4 {[%emt 0:00:13]} 28. Bxf8 {[%emt 0:00:39]} Kxf8 {[%emt 0:00:02]} 29. Qh6+ {[%emt 0:00:17]} Ke8 {[%emt 0:00:01]} 30. Ncxe4 {[%emt 0:01:55]} Nxe4 {[%emt 0:00:18]} 31. Nxe4 {[%emt 0:00:10]} Rc2 {[%emt 0:00:12]} 32. Rd1 {[%emt 0:01:40]} Rxe2+ {[%emt 0:00:25]} 33. Kg3 {[%emt 0:01:01]} Bd5 {[%emt 0:02:03]} 34. Qh8+ {[%emt 0:00:58]} Kd7 {[%emt 0:00:03]} 35. Qh4 {[%emt 0:01:04]} Qc7+ {[%emt 0:02:14]} 36. Qf4 {[%emt 0:00:05]} Qxf4+ {[%emt 0:00:22]} 37. Rxf4 {[%emt 0:00:01]} Kc6 {[%emt 0:00:37]} 38. Rc1+ {[%emt 0:00:37]} Kd7 {[%emt 0:00:30]} 39. Rd1 {[%emt 0:01:06]} Kc6 {[%emt 0:00:01]} 40. Rc1+ {[%emt 0:00:00]} Kd7 {[%emt 0:00:00]} 1/2-1/2

[Event "Najdorf Memorial-A 2022"]
[Site "Warsaw"]
[Date "2022.07.11"]
[Round "3.1"]
[White "Iwanczuk, Krzysztof"]
[Black "Dalkowski, Rafal"]
[Result "0-1"]
[ECO "B12"]
[WhiteElo "1947"]
[BlackElo "2120"]
[Annotator "ChessBase"]
[PlyCount "86"]
[EventDate "2022.07.09"]
[EventType "swiss"]
[EventCountry "POL"]
[SourceTitle "playchess.com"]
[Source "ChessBase"]
[SourceQuality "1"]
[TimeControl "40/5400+30:1800+30"]

1. e4 {[%emt 0:00:03]} c6 {[%emt 0:00:05]} 2. d4 {[%emt 0:00:07]} d5 {[%emt 0:00:04]} 3. e5 {[%emt 0:00:07]} Bf5 {[%emt 0:00:07]} 4. h4 {[%emt 0:00:13]} h5 {[%emt 0:00:06]} 5. Bd3 {[%emt 0:00:11]} Bxd3 {[%emt 0:00:48]} 6. Qxd3 {[%emt 0:00:09]} e6 {[%emt 0:00:46]} 7. Nf3 {[%emt 0:00:12]} Ne7 {[%emt 0:02:18]} 8. Bg5 {[%emt 0:00:18]} Nd7 {[%emt 0:01:30]} 9. Nbd2 {[%emt 0:02:18]} Qc7 {[%emt 0:02:19]} 10. c4 {[%emt 0:04:43]} O-O-O {[%emt 0:05:54]} 11. O-O {[%emt 0:02:58]} f6 {[%emt 0:02:53]} 12. Bf4 {[%emt 0:02:14]} dxc4 {[%emt 0:04:14]} 13. Qxc4 {[%emt 0:09:00]} Nd5 {[%emt 0:01:02]} 14. Bh2 {[%emt 0:00:39]} f5 {[%emt 0:04:20]} 15. Ng5 {[%emt 0:04:27]} N7b6 {[%emt 0:01:52]} 16. Qc2 {[%emt 0:01:04]} Qd7 {[%emt 0:01:07]} 17. Nb3 {[%emt 0:03:05]} Kb8 {[%emt 0:07:48]} 18. Rfd1 {[%emt 0:08:10]} Na8 {[%emt 0:07:48]} 19. Rac1 {[%emt 0:11:16]} Nac7 {[%emt 0:02:29]} 20. Nc5 {[%emt 0:01:20]} Qe8 {[%emt 0:02:07]} 21. Qa4 {[%emt 0:11:53]} Rc8 {[%emt 0:08:07]} 22. Rd3 {[%emt 0:01:52]} b6 {[%emt 0:05:25]} 23. Rb3 {[%emt 0:03:04]} Ka8 {[%emt 0:03:41]} 24. Nd3 {[%emt 0:02:54]} Kb7 {[%emt 0:05:22]} 25. Nc5+ {[%emt 0:03:36]} Ka8 {[%emt 0:00:07]} 26. Nd3 {[%emt 0:06:23]} Kb7 {[%emt 0:00:17]} 27. Qc4 {[%emt 0:01:37]} Be7 {[%emt 0:01:36]} 28. Nc5+ {[%emt 0:03:12]} Bxc5 {[%emt 0:01:14]} 29. dxc5 {[%emt 0:00:39]} b5 {[%emt 0:01:11]} 30. a4 {[%emt 0:01:03]} Nb6 {[%emt 0:04:59]} 31. Qb4 {[%emt 0:01:40]} Nbd5 {[%emt 0:02:23]} 32. Qa5 {[%emt 0:00:56]} a6 {[%emt 0:01:39]} 33. Nf3 {[%emt 0:02:47]} Rg8 {[%emt 0:04:05]} 34. Nd2 {[%emt 0:00:23]} Ka7 {[%emt 0:01:34]} 35. axb5 {[%emt 0:01:52]} cxb5 {[%emt 0:00:07]} 36. Nf3 {[%emt 0:01:10]} b4 {[%emt 0:02:41]} 37. c6 {[%emt 0:02:11]} Nb5 {[%emt 0:01:08]} 38. Nd4 {[%emt 0:04:55]} Nxd4 {[%emt 0:00:43]} 39. Qc5+ {[%emt 0:00:04]} Ka8 {[%emt 0:00:47]} 40. Qxd4 {[%emt 0:00:00]} Rxc6 {[%emt 0:00:00]} 41. Ra1 {[%emt 0:04:15]} Qc8 {[%emt 0:01:14]} 42. Bf4 {[%emt 0:01:30]} Rc4 {[%emt 0:01:37]} 43. Qd3 {[%emt 0:00:39]} Nxf4 {[%emt 0:01:30]} 0-1